{"text_format":"3","workbook":"xlsx","n_sheets":3,"sheets":["INIZIO","PIANO DI BUDGET MARKETING","GRAFICO CATEGORIE"],"not_rendered":{"charts":1,"defined_names":4,"pivot_tables":1},"read":"whole","date_system":"1900"}

{"sheet":"INIZIO","index":0,"n_rows":7,"n_cols":2,"rows_kept":7}
[null,"Informazioni sul modello"]
[null,"Creare un piano di budget per il marketing e un grafico per categorie in questa cartella di lavoro."]
[null,"Immettere categorie, quantità e costi nella tabella del foglio di lavoro Piano di budget marketing. I costi dell'evento e il totale complessivo stimato per il marketing vengono calcolati automaticamente."]
[null,"L'istogramma a colonne raggruppate viene aggiornato automaticamente nel foglio di lavoro Grafico per categorie."]
[null,"Nota: "]
[null,"Altre istruzioni sono state fornite nella colonna A dei fogli di lavoro PIANO DI BUDGET MARKETING e GRAFICO CATEGORIE. Questo testo è stato nascosto intenzionalmente. Per rimuovere il testo, selezionare la colonna A, quindi selezionare ELIMINA. Per visualizzare/nascondere il testo, selezionare l'opzione di testo delle istruzioni aggiuntive di seguito."]
[null,"Per altre informazioni sulla tabella, premere MAIUSC e quindi F10 in una tabella, selezionare l'opzione TABELLA, infine selezionare TESTO ALTERNATIVO. Per le tabelle pivot, premere MAIUSC e quindi F10 in una tabella, selezionare OPZIONI TABELLA PIVOT, infine selezionare la scheda TESTO ALTERNATIVO."]

{"sheet":"PIANO DI BUDGET MARKETING","index":1,"n_rows":61,"n_cols":7,"rows_kept":61,"merged":[[3,1,3,2],[4,1,4,2],[5,1,5,2],[6,1,6,2]]}
[]
[null,"PIANO DI BUDGET MARKETING"]
[{"$nulls":4},"Il filtro dei dati per filtrare i dati della tabella per categoria primaria si trova in questa cella."]
[null,"NUMERO DI PARTECIPANTI",null,50]
[null,"COSTI EVENTO",null,{"$f":"SUMIF(Dati[Categoria primaria],\"Evento\",Dati[Subtotale stimato])","v":{"v":2500,"d":"€ 2,500.00"}}]
[null,"PREZZO EVENTO A PERSONA",null,{"$f":"EventCosts/NumberOfAttendees","v":{"v":50,"d":"€ 50.00"}}]
[null,"TOTALE COMPLESSIVO STIMATO PER MARKETING",null,{"$f":"SUMIF(Dati[Categoria primaria],\"<>Evento\",Dati[Subtotale stimato])","v":{"v":45743,"d":"€ 45,743.00"}}]
[null,"SUBTOTALE",null,{"$f":"SUBTOTAL(109,Dati[Subtotale stimato])","v":{"v":0,"d":"€ 0.00"}}]
[]
[null,"Categoria primaria","Categoria secondaria","Quantità prevista","Costo stimato unitario","Subtotale stimato","Note"]
[null,"Ricerca","Tariffe società di ricerca",2,{"v":2300,"d":"€ 2,300.00"},{"$f":"Dati[[#This Row],[Quantità prevista]]*Dati[[#This Row],[Costo stimato unitario]]","v":{"v":4600,"d":"€ 4,600.00"}}]
[null,"Ricerca","Ricerca Web",1,{"v":1100,"d":"€ 1,100.00"},{"$f":"Dati[[#This Row],[Quantità prevista]]*Dati[[#This Row],[Costo stimato unitario]]","v":{"v":1100,"d":"€ 1,100.00"}}]
[null,"Ricerca","Ricerca indipendente",3,{"v":300,"d":"€ 300.00"},{"$f":"Dati[[#This Row],[Quantità prevista]]*Dati[[#This Row],[Costo stimato unitario]]","v":{"v":900,"d":"€ 900.00"}}]
[null,"Ricerca","Altre ricerche",2,{"v":250,"d":"€ 250.00"},{"$f":"Dati[[#This Row],[Quantità prevista]]*Dati[[#This Row],[Costo stimato unitario]]","v":{"v":500,"d":"€ 500.00"}}]
[null,"Comunicazioni","Brochure promozionali",{"v":5000,"d":"5,000"},{"v":0.15,"d":"€ 0.15"},{"$f":"Dati[[#This Row],[Quantità prevista]]*Dati[[#This Row],[Costo stimato unitario]]","v":{"v":750,"d":"€ 750.00"}}]
[null,"Comunicazioni","Televisione",5,{"v":4000,"d":"€ 4,000.00"},{"$f":"Dati[[#This Row],[Quantità prevista]]*Dati[[#This Row],[Costo stimato unitario]]","v":{"v":20000,"d":"€ 20,000.00"}}]
[null,"Comunicazioni","Radio",13,{"v":350,"d":"€ 350.00"},{"$f":"Dati[[#This Row],[Quantità prevista]]*Dati[[#This Row],[Costo stimato unitario]]","v":{"v":4550,"d":"€ 4,550.00"}}]
[null,"Comunicazioni","Web",1,{"v":350,"d":"€ 350.00"},{"$f":"Dati[[#This Row],[Quantità prevista]]*Dati[[#This Row],[Costo stimato unitario]]","v":{"v":350,"d":"€ 350.00"}}]
[null,"Creazione rete","Creazione rete",null,null,{"$f":"Dati[[#This Row],[Quantità prevista]]*Dati[[#This Row],[Costo stimato unitario]]","v":{"v":0,"d":"€ 0.00"}}]
[null,"Creazione rete","Iscrizioni",3,{"v":50,"d":"€ 50.00"},{"$f":"Dati[[#This Row],[Quantità prevista]]*Dati[[#This Row],[Costo stimato unitario]]","v":{"v":150,"d":"€ 150.00"}}]
[null,"Creazione rete","Affiliazioni",2,{"v":20,"d":"€ 20.00"},{"$f":"Dati[[#This Row],[Quantità prevista]]*Dati[[#This Row],[Costo stimato unitario]]","v":{"v":40,"d":"€ 40.00"}}]
[null,"Creazione rete","Abbonamenti",2,{"v":32,"d":"€ 32.00"},{"$f":"Dati[[#This Row],[Quantità prevista]]*Dati[[#This Row],[Costo stimato unitario]]","v":{"v":64,"d":"€ 64.00"}}]
[null,"Evento","Numero di partecipanti",50,null,{"$f":"Dati[[#This Row],[Quantità prevista]]*Dati[[#This Row],[Costo stimato unitario]]","v":{"v":0,"d":"€ 0.00"}}]
[null,"Evento","Pasti (colazione, pranzo o cena)",null,null,{"$f":"Dati[[#This Row],[Quantità prevista]]*Dati[[#This Row],[Costo stimato unitario]]","v":{"v":0,"d":"€ 0.00"}}]
[null,"Evento","Cibo",null,{"v":23,"d":"€ 23.00"},{"$f":"Dati[[#This Row],[Quantità prevista]]*Dati[[#This Row],[Costo stimato unitario]]","v":{"v":0,"d":"€ 0.00"}}]
[null,"Evento","Imposta (10%)",null,{"v":2.3000000000000003,"d":"€ 2.30"},{"$f":"Dati[[#This Row],[Quantità prevista]]*Dati[[#This Row],[Costo stimato unitario]]","v":{"v":0,"d":"€ 0.00"}}]
[null,"Evento","Cibo e bevande gratuiti (20%)",null,{"v":5.0600000000000005,"d":"€ 5.06"},{"$f":"Dati[[#This Row],[Quantità prevista]]*Dati[[#This Row],[Costo stimato unitario]]","v":{"v":0,"d":"€ 0.00"}}]
[null,"Evento","Servizi di noleggio auto",1,{"v":300,"d":"€ 300.00"},{"$f":"Dati[[#This Row],[Quantità prevista]]*Dati[[#This Row],[Costo stimato unitario]]","v":{"v":300,"d":"€ 300.00"}}]
[null,"Evento","Intrattenimento 1",1,{"v":800,"d":"€ 800.00"},{"$f":"Dati[[#This Row],[Quantità prevista]]*Dati[[#This Row],[Costo stimato unitario]]","v":{"v":800,"d":"€ 800.00"}}]
[null,"Evento","Intrattenimento 2",1,{"v":1200,"d":"€ 1,200.00"},{"$f":"Dati[[#This Row],[Quantità prevista]]*Dati[[#This Row],[Costo stimato unitario]]","v":{"v":1200,"d":"€ 1,200.00"}}]
[null,"Evento","Altri servizi",1,{"v":200,"d":"€ 200.00"},{"$f":"Dati[[#This Row],[Quantità prevista]]*Dati[[#This Row],[Costo stimato unitario]]","v":{"v":200,"d":"€ 200.00"}}]
[null,"Servizi audiovisivi","Amplificatori di potenza e podio",1,{"v":0,"d":"€ 0.00"},{"$f":"Dati[[#This Row],[Quantità prevista]]*Dati[[#This Row],[Costo stimato unitario]]","v":{"v":0,"d":"€ 0.00"}},"Fornito in loco (di solito)"]
[null,"Servizi audiovisivi","Schermo",1,{"v":0,"d":"€ 0.00"},{"$f":"Dati[[#This Row],[Quantità prevista]]*Dati[[#This Row],[Costo stimato unitario]]","v":{"v":0,"d":"€ 0.00"}},"Fornito in loco (di solito)"]
[null,"Servizi audiovisivi","Noleggio proiettore dati/video XGA",1,{"v":45,"d":"€ 45.00"},{"$f":"Dati[[#This Row],[Quantità prevista]]*Dati[[#This Row],[Costo stimato unitario]]","v":{"v":45,"d":"€ 45.00"}}]
[null,"Servizi audiovisivi","Mouse wireless",1,{"v":12,"d":"€ 12.00"},{"$f":"Dati[[#This Row],[Quantità prevista]]*Dati[[#This Row],[Costo stimato unitario]]","v":{"v":12,"d":"€ 12.00"}}]
[null,"Servizi audiovisivi","Prese multiple",1,{"v":0,"d":"€ 0.00"},{"$f":"Dati[[#This Row],[Quantità prevista]]*Dati[[#This Row],[Costo stimato unitario]]","v":{"v":0,"d":"€ 0.00"}},"Fornito in loco (di solito)"]
[null,"Servizi audiovisivi","Cavi estensibili",1,{"v":0,"d":"€ 0.00"},{"$f":"Dati[[#This Row],[Quantità prevista]]*Dati[[#This Row],[Costo stimato unitario]]","v":{"v":0,"d":"€ 0.00"}},"Fornito in loco (di solito)"]
[null,"Servizi audiovisivi","Microfono Lavalier",1,{"v":0,"d":"€ 0.00"},{"$f":"Dati[[#This Row],[Quantità prevista]]*Dati[[#This Row],[Costo stimato unitario]]","v":{"v":0,"d":"€ 0.00"}},"Fornito in loco (di solito)"]
[null,"Servizi audiovisivi","Manodopera e tecnici AV",1,{"v":300,"d":"€ 300.00"},{"$f":"Dati[[#This Row],[Quantità prevista]]*Dati[[#This Row],[Costo stimato unitario]]","v":{"v":300,"d":"€ 300.00"}}]
[null,"Servizi audiovisivi","Imposta (8,8%)",null,{"v":31.415999999999997,"d":"€ 31.42"},{"$f":"Dati[[#This Row],[Quantità prevista]]*Dati[[#This Row],[Costo stimato unitario]]","v":{"v":0,"d":"€ 0.00"}}]
[null,"Costi aggiuntivi","Invito \n(costi di stampa e affrancatura)",null,{"v":834,"d":"€ 834.00"},{"$f":"Dati[[#This Row],[Quantità prevista]]*Dati[[#This Row],[Costo stimato unitario]]","v":{"v":0,"d":"€ 0.00"}}]
[null,"Costi aggiuntivi","Registrazione tempi e spese",null,{"v":600,"d":"€ 600.00"},{"$f":"Dati[[#This Row],[Quantità prevista]]*Dati[[#This Row],[Costo stimato unitario]]","v":{"v":0,"d":"€ 0.00"}}]
[null,"Costi aggiuntivi","Tempi e spese del personale",null,{"v":200,"d":"€ 200.00"},{"$f":"Dati[[#This Row],[Quantità prevista]]*Dati[[#This Row],[Costo stimato unitario]]","v":{"v":0,"d":"€ 0.00"}},"<Numero di persone in sede>"]
[null,"Costi aggiuntivi","Tempi e spese del testimonial del cliente",null,{"v":100,"d":"€ 100.00"},{"$f":"Dati[[#This Row],[Quantità prevista]]*Dati[[#This Row],[Costo stimato unitario]]","v":{"v":0,"d":"€ 0.00"}}]
[null,"Omaggi","Omaggio 1",25,{"v":10,"d":"€ 10.00"},{"$f":"Dati[[#This Row],[Quantità prevista]]*Dati[[#This Row],[Costo stimato unitario]]","v":{"v":250,"d":"€ 250.00"}},"<Descrizione omaggi e gadget>"]
[null,"Omaggi","Omaggio 2",25,{"v":5,"d":"€ 5.00"},{"$f":"Dati[[#This Row],[Quantità prevista]]*Dati[[#This Row],[Costo stimato unitario]]","v":{"v":125,"d":"€ 125.00"}},"<Descrizione omaggi e gadget>"]
[null,"Promozioni","Prodotti omaggio",50,{"v":8,"d":"€ 8.00"},{"$f":"Dati[[#This Row],[Quantità prevista]]*Dati[[#This Row],[Costo stimato unitario]]","v":{"v":400,"d":"€ 400.00"}}]
[null,"Promozioni","Sconti sul prodotto",300,{"v":3,"d":"€ 3.00"},{"$f":"Dati[[#This Row],[Quantità prevista]]*Dati[[#This Row],[Costo stimato unitario]]","v":{"v":900,"d":"€ 900.00"}}]
[null,"Promozioni","Offerte speciali",200,{"v":2.5,"d":"€ 2.50"},{"$f":"Dati[[#This Row],[Quantità prevista]]*Dati[[#This Row],[Costo stimato unitario]]","v":{"v":500,"d":"€ 500.00"}}]
[null,"Pubblicità","Brochure (sviluppo e produzione)",{"v":5000,"d":"5,000"},{"v":0.15,"d":"€ 0.15"},{"$f":"Dati[[#This Row],[Quantità prevista]]*Dati[[#This Row],[Costo stimato unitario]]","v":{"v":750,"d":"€ 750.00"}}]
[null,"Pubblicità","Mailing",{"v":15000,"d":"15,000"},{"v":0.04,"d":"€ 0.04"},{"$f":"Dati[[#This Row],[Quantità prevista]]*Dati[[#This Row],[Costo stimato unitario]]","v":{"v":600,"d":"€ 600.00"}}]
[null,"Pubblicità","Cartoline",{"v":15000,"d":"15,000"},{"v":0.03,"d":"€ 0.03"},{"$f":"Dati[[#This Row],[Quantità prevista]]*Dati[[#This Row],[Costo stimato unitario]]","v":{"v":450,"d":"€ 450.00"}}]
[null,"Pubblicità","Televisione",2,{"v":600,"d":"€ 600.00"},{"$f":"Dati[[#This Row],[Quantità prevista]]*Dati[[#This Row],[Costo stimato unitario]]","v":{"v":1200,"d":"€ 1,200.00"}}]
[null,"Pubblicità","Radio",4,{"v":300,"d":"€ 300.00"},{"$f":"Dati[[#This Row],[Quantità prevista]]*Dati[[#This Row],[Costo stimato unitario]]","v":{"v":1200,"d":"€ 1,200.00"}}]
[null,"Pubblicità","Giornali",6,{"v":220,"d":"€ 220.00"},{"$f":"Dati[[#This Row],[Quantità prevista]]*Dati[[#This Row],[Costo stimato unitario]]","v":{"v":1320,"d":"€ 1,320.00"}}]
[null,"Pubblicità","Cartelloni",2,{"v":556,"d":"€ 556.00"},{"$f":"Dati[[#This Row],[Quantità prevista]]*Dati[[#This Row],[Costo stimato unitario]]","v":{"v":1112,"d":"€ 1,112.00"}}]
[null,"Pubblicità","Pannelli su autobus",3,{"v":125,"d":"€ 125.00"},{"$f":"Dati[[#This Row],[Quantità prevista]]*Dati[[#This Row],[Costo stimato unitario]]","v":{"v":375,"d":"€ 375.00"}}]
[null,"Pubbliche relazioni","Eventi di beneficenza",3,{"v":200,"d":"€ 200.00"},{"$f":"Dati[[#This Row],[Quantità prevista]]*Dati[[#This Row],[Costo stimato unitario]]","v":{"v":600,"d":"€ 600.00"}}]
[null,"Pubbliche relazioni","Pubblicità",4,{"v":200,"d":"€ 200.00"},{"$f":"Dati[[#This Row],[Quantità prevista]]*Dati[[#This Row],[Costo stimato unitario]]","v":{"v":800,"d":"€ 800.00"}}]
[null,"Pubbliche relazioni","Promozioni dipendenti",6,{"v":200,"d":"€ 200.00"},{"$f":"Dati[[#This Row],[Quantità prevista]]*Dati[[#This Row],[Costo stimato unitario]]","v":{"v":1200,"d":"€ 1,200.00"}}]
[null,"Pubbliche relazioni","Sponsorizzazioni",3,{"v":200,"d":"€ 200.00"},{"$f":"Dati[[#This Row],[Quantità prevista]]*Dati[[#This Row],[Costo stimato unitario]]","v":{"v":600,"d":"€ 600.00"}}]

{"sheet":"GRAFICO CATEGORIE","index":2,"n_rows":8,"n_cols":13,"rows_kept":8}
[]
[null,"PIANO DI BUDGET MARKETING"]
[]
[null,null,"Categoria primaria"]
[null,null,"Costi aggiuntivi","Pubblicità","Servizi audiovisivi","Comunicazioni","Evento","Omaggi","Creazione rete","Promozioni","Pubbliche relazioni","Ricerca","Totale complessivo"]
[null,"Subtotale stimato",{"v":0,"d":"€ 0.00"},{"v":7007,"d":"€ 7,007.00"},{"v":357,"d":"€ 357.00"},{"v":25650,"d":"€ 25,650.00"},{"v":2500,"d":"€ 2,500.00"},{"v":375,"d":"€ 375.00"},{"v":254,"d":"€ 254.00"},{"v":1800,"d":"€ 1,800.00"},{"v":3200,"d":"€ 3,200.00"},{"v":7100,"d":"€ 7,100.00"},{"v":48243,"d":"€ 48,243.00"}]
[]
[null," Il grafico pivot con colonne che mostra le categorie primarie e i relativi subtotali stimati si trova in questa cella."]